[Event "FIDE Grand Swiss 2023"]
[Site "Villa Marina, Douglas, Isle of Man"]
[Date "2023.10.30"]
[Round "6.19"]
[White "Sarana, Alexey"]
[Black "Nguyen, Thai Dai Van"]
[Result "1-0"]
[WhiteElo "2682"]
[BlackElo "2618"]
[EventDate "2023.10.25"]
[ECO "D37"]
[PlyCount "81"]
[BlackFideId "358878"]
[TimeControl "40/100 + 20/50 + 15 + 30s/move"]
[WhiteFideId "24133795"]

1.d4 {[%clk 01:40:57] [%emt 00:00:03]} 1...Nf6 {[%clk 01:40:49] [%emt 00:00:10]} 
2.c4 {[%clk 01:41:15] [%emt 00:00:14]} 2...e6 {[%clk 01:41:12] [%emt 00:00:07]} 
3.Nf3 {[%clk 01:41:36] [%emt 00:00:08]} 3...d5 {[%clk 01:41:32] [%emt 00:00:11]} 
4.Nc3 {[%clk 01:41:58] [%emt 00:00:07]} 4...Be7 {[%clk 01:41:56] [%emt
00:00:06]} 5.Bg5 {[%clk 01:41:57] [%emt 00:00:31]} 5...h6 {[%clk 01:42:15] [%emt
00:00:11]} 6.Bh4 {[%clk 01:42:16] [%emt 00:00:11]} 6...dxc4 {[%clk 01:25:18]
[%emt 00:17:27]} 7.e3 {[%clk 01:42:18] [%emt 00:00:28]} 7...Nd5 {[%clk 01:25:24]
[%emt 00:00:24]} 8.Bxe7 {[%clk 01:40:12] [%emt 00:02:37]} 8...Qxe7 {[%clk
01:25:47] [%emt 00:00:07]} 9.Qa4+ {[%clk 01:40:24] [%emt 00:00:18]} 9...c6 
{[%clk 01:26:09] [%emt 00:00:08]} 10.Qxc4 {[%clk 01:40:41] [%emt 00:00:13]} 
10...b6 {[%clk 01:25:48] [%emt 00:00:51]} 11.Be2 {[%clk 01:28:39] [%emt
00:12:32]} 11...O-O {[%clk 01:18:39] [%emt 00:07:38]} 12.O-O {[%clk 01:27:18]
[%emt 00:01:51]} 12...Bb7 {[%clk 01:03:20] [%emt 00:15:49]} 13.Rac1 {[%clk
01:16:20] [%emt 00:11:28]} 13...Nxc3 {[%clk 00:46:30] [%emt 00:17:20]} 14.Qxc3 
{[%clk 01:16:32] [%emt 00:00:19]} 14...Nd7 {[%clk 00:46:53] [%emt 00:00:06]} 
15.Rfd1 {[%clk 00:58:55] [%emt 00:18:07]} 15...Rfc8 {[%clk 00:45:41] [%emt
00:01:43]} 16.Nd2 {[%clk 00:54:08] [%emt 00:05:17]} 16...c5 {[%clk 00:37:05]
[%emt 00:09:05]} 17.Qa3 {[%clk 00:54:13] [%emt 00:00:25]} 17...a5 {[%clk
00:22:03] [%emt 00:15:32]} 18.Bf3 {[%clk 00:38:01] [%emt 00:16:42]} 18...Bxf3 
{[%clk 00:21:09] [%emt 00:01:24]} 19.Nxf3 {[%clk 00:37:46] [%emt 00:00:45]} 
19...b5 {[%clk 00:18:18] [%emt 00:03:22]} 20.h3 {[%clk 00:33:05] [%emt
00:05:11]} 20...b4 {[%clk 00:18:26] [%emt 00:00:21]} 21.Qd3 {[%clk 00:33:19]
[%emt 00:00:16]} 21...Qe8 {[%clk 00:05:40] [%emt 00:13:18]} 22.Qb5 {[%clk
00:23:02] [%emt 00:10:46]} 22...Rcb8 {[%clk 00:05:45] [%emt 00:00:25]} 23.Qc6 
{[%clk 00:22:42] [%emt 00:00:51]} 23...Rc8 {[%clk 00:05:25] [%emt 00:00:49]} 
24.Qd6 {[%clk 00:22:37] [%emt 00:00:35]} 24...cxd4 {[%clk 00:04:33] [%emt
00:01:22]} 25.Nxd4 {[%clk 00:22:18] [%emt 00:00:49]} 25...Nf6 {[%clk 00:04:07]
[%emt 00:00:56]} 26.Nc6 {[%clk 00:20:42] [%emt 00:02:06]} 26...Kh8 {[%clk
00:03:15] [%emt 00:01:21]} 27.Ne5 {[%clk 00:20:07] [%emt 00:01:05]} 27...Kg8 
{[%clk 00:03:44] [%emt 00:00:01]} 28.f3 {[%clk 00:11:14] [%emt 00:09:24]} 
28...Rd8 {[%clk 00:02:50] [%emt 00:01:24]} 29.Qc6 {[%clk 00:11:08] [%emt
00:00:36]} 29...Qe7 {[%clk 00:02:19] [%emt 00:01:01]} 30.Rxd8+ {[%clk 00:10:46]
[%emt 00:00:52]} 30...Rxd8 {[%clk 00:02:42] [%emt 00:00:07]} 31.Qb6 {[%clk
00:10:59] [%emt 00:00:16]} 31...Qd6 {[%clk 00:00:42] [%emt 00:02:30]} 32.Qxd6 
{[%clk 00:10:24] [%emt 00:01:05]} 32...Rxd6 {[%clk 00:01:11] [%emt 00:00:01]} 
33.Rc8+ {[%clk 00:10:48] [%emt 00:00:06]} 33...Kh7 {[%clk 00:01:40] [%emt
00:00:02]} 34.Rh8+ {[%clk 00:11:12] [%emt 00:00:06]} 34...Kxh8 {[%clk 00:02:07]
[%emt 00:00:03]} 35.Nxf7+ {[%clk 00:11:38] [%emt 00:00:04]} 35...Kg8 {[%clk
00:02:16] [%emt 00:00:21]} 36.Nxd6 {[%clk 00:12:04] [%emt 00:00:04]} 36...Nd5 
{[%clk 00:02:04] [%emt 00:00:42]} 37.Kf2 {[%clk 00:10:10] [%emt 00:02:24]} 
37...a4 {[%clk 00:01:58] [%emt 00:00:36]} 38.a3 {[%clk 00:08:44] [%emt
00:01:57]} 38...Nc3 {[%clk 00:00:47] [%emt 00:01:40]} 39.Ke1 {[%clk 00:07:13]
[%emt 00:02:00]} 39...bxa3 {[%clk 00:01:09] [%emt 00:00:09]} 40.bxa3 {[%clk
00:07:40] [%emt 00:00:03]} 40...Kf8 {[%clk 00:01:36] [%emt 00:00:03]} 41.Kd2 
{[%clk 00:07:09] [%emt 00:01:00]} 1-0

[Event "FIDE Grand Swiss 2023"]
[Site "Villa Marina, Douglas, Isle of Man"]
[Date "2023.10.30"]
[Round "6.20"]
[White "Bacrot, Etienne"]
[Black "Huschenbeth, Niclas"]
[Result "1-0"]
[WhiteElo "2669"]
[BlackElo "2605"]
[EventDate "2023.10.25"]
[ECO "B90"]
[PlyCount "75"]
[BlackFideId "24604747"]
[TimeControl "40/100 + 20/50 + 15 + 30s/move"]
[WhiteFideId "605506"]

1.e4 {[%clk 01:40:49] [%emt 00:00:09]} 1...c5 {[%clk 01:40:53] [%emt 00:00:06]} 
2.Nf3 {[%clk 01:41:16] [%emt 00:00:05]} 2...d6 {[%clk 01:41:18] [%emt 00:00:05]} 
3.d4 {[%clk 01:41:42] [%emt 00:00:04]} 3...cxd4 {[%clk 01:41:42] [%emt
00:00:06]} 4.Nxd4 {[%clk 01:42:09] [%emt 00:00:02]} 4...Nf6 {[%clk 01:42:04]
[%emt 00:00:08]} 5.Nc3 {[%clk 01:42:36] [%emt 00:00:03]} 5...a6 {[%clk 01:42:28]
[%emt 00:00:06]} 6.Be3 {[%clk 01:43:02] [%emt 00:00:04]} 6...e5 {[%clk 01:42:46]
[%emt 00:00:11]} 7.Nb3 {[%clk 01:43:27] [%emt 00:00:06]} 7...Be7 {[%clk
01:43:09] [%emt 00:00:08]} 8.f3 {[%clk 01:43:11] [%emt 00:00:46]} 8...Be6 
{[%clk 01:43:24] [%emt 00:00:15]} 9.Qd2 {[%clk 01:42:51] [%emt 00:00:50]} 
9...O-O {[%clk 01:42:52] [%emt 00:01:02]} 10.O-O-O {[%clk 01:43:08] [%emt
00:00:13]} 10...b5 {[%clk 01:42:21] [%emt 00:01:01]} 11.g4 {[%clk 01:36:22]
[%emt 00:07:16]} 11...Nbd7 {[%clk 01:42:37] [%emt 00:00:14]} 12.g5 {[%clk
01:35:30] [%emt 00:01:22]} 12...b4 {[%clk 01:42:59] [%emt 00:00:08]} 13.gxf6 
{[%clk 01:34:47] [%emt 00:01:13]} 13...bxc3 {[%clk 01:43:19] [%emt 00:00:10]} 
14.Qxc3 {[%clk 01:35:13] [%emt 00:00:04]} 14...Nxf6 {[%clk 01:43:40] [%emt
00:00:09]} 15.Na5 {[%clk 01:35:32] [%emt 00:00:11]} 15...Rc8 {[%clk 01:43:10]
[%emt 00:01:00]} 16.Nc6 {[%clk 01:33:36] [%emt 00:02:26]} 16...Qe8 {[%clk
01:42:13] [%emt 00:01:26]} 17.Nxe7+ {[%clk 01:33:46] [%emt 00:00:20]} 17...Qxe7 
{[%clk 01:42:39] [%emt 00:00:04]} 18.Qa5 {[%clk 01:34:10] [%emt 00:00:06]} 
18...Rc6 {[%clk 01:43:02] [%emt 00:00:07]} 19.Rd2 {[%clk 01:24:55] [%emt
00:09:45]} 19...Rfc8 {[%clk 01:39:04] [%emt 00:04:29]} 20.Rg1 {[%clk 01:22:24]
[%emt 00:03:00]} 20...Nd7 {[%clk 01:31:20] [%emt 00:08:14]} 21.Kb1 {[%clk
01:13:03] [%emt 00:09:50]} 21...g6 {[%clk 01:24:47] [%emt 00:07:04]} 22.Be2 
{[%clk 01:09:51] [%emt 00:03:43]} 22...Nc5 {[%clk 01:09:53] [%emt 00:15:25]} 
23.Rc1 {[%clk 00:51:07] [%emt 00:19:13]} 23...Nb7 {[%clk 00:56:02] [%emt
00:14:21]} 24.Qa3 {[%clk 00:49:59] [%emt 00:01:38]} 24...Qc7 {[%clk 00:54:28]
[%emt 00:02:04]} 25.f4 {[%clk 00:43:48] [%emt 00:06:41]} 25...exf4 {[%clk
00:46:06] [%emt 00:08:52]} 26.Bxf4 {[%clk 00:43:45] [%emt 00:00:32]} 26...Nc5 
{[%clk 00:45:49] [%emt 00:00:48]} 27.Bf3 {[%clk 00:39:00] [%emt 00:05:15]} 
27...Rb6 {[%clk 00:42:15] [%emt 00:04:05]} 28.c4 {[%clk 00:33:15] [%emt
00:06:14]} 28...Qb7 {[%clk 00:25:19] [%emt 00:17:26]} 29.Qe3 {[%clk 00:09:53]
[%emt 00:23:52]} 29...Rb8 {[%clk 00:07:37] [%emt 00:18:13]} 30.Rcc2 {[%clk
00:09:28] [%emt 00:00:54]} 30...Bxc4 {[%clk 00:07:09] [%emt 00:00:58]} 31.e5 
{[%clk 00:09:40] [%emt 00:00:19]} 31...Bxa2+ {[%clk 00:07:11] [%emt 00:00:28]} 
32.Kxa2 {[%clk 00:10:01] [%emt 00:00:08]} 32...Qd7 {[%clk 00:07:40] [%emt
00:00:02]} 33.Qxc5 {[%clk 00:06:46] [%emt 00:03:45]} 33...Qa4+ {[%clk 00:06:53]
[%emt 00:01:17]} 34.Qa3 {[%clk 00:07:09] [%emt 00:00:07]} 34...Qxf4 {[%clk
00:07:11] [%emt 00:00:11]} 35.exd6 {[%clk 00:07:18] [%emt 00:00:21]} 35...Rb4 
{[%clk 00:05:16] [%emt 00:02:25]} 36.Bc6 {[%clk 00:05:51] [%emt 00:01:57]} 
36...Qe5 {[%clk 00:03:26] [%emt 00:02:21]} 37.d7 {[%clk 00:05:35] [%emt
00:00:45]} 37...Qe6+ {[%clk 00:03:47] [%emt 00:00:09]} 38.b3 {[%clk 00:04:59]
[%emt 00:01:06]} 1-0

[Event "FIDE Grand Swiss 2023"]
[Site "Villa Marina, Douglas, Isle of Man"]
[Date "2023.10.30"]
[Round "6.21"]
[White "Kuzubov, Yuriy"]
[Black "Bluebaum, Matthias"]
[Result "1-0"]
[WhiteElo "2625"]
[BlackElo "2668"]
[EventDate "2023.10.25"]
[ECO "D38"]
[PlyCount "59"]
[BlackFideId "24651516"]
[TimeControl "40/100 + 20/50 + 15 + 30s/move"]
[WhiteFideId "14112906"]

1.d4 {[%clk 01:40:56] [%emt 00:00:02]} 1...Nf6 {[%clk 01:40:50] [%emt 00:00:10]} 
2.c4 {[%clk 01:41:20] [%emt 00:00:06]} 2...e6 {[%clk 01:41:17] [%emt 00:00:04]} 
3.Nf3 {[%clk 01:41:40] [%emt 00:00:09]} 3...d5 {[%clk 01:41:41] [%emt 00:00:06]} 
4.Nc3 {[%clk 01:42:01] [%emt 00:00:09]} 4...Bb4 {[%clk 01:41:56] [%emt
00:00:16]} 5.Bg5 {[%clk 01:42:23] [%emt 00:00:07]} 5...O-O {[%clk 01:42:01]
[%emt 00:00:25]} 6.e3 {[%clk 01:41:23] [%emt 00:01:30]} 6...c5 {[%clk 01:41:59]
[%emt 00:00:33]} 7.cxd5 {[%clk 01:39:53] [%emt 00:01:59]} 7...exd5 {[%clk
01:42:13] [%emt 00:00:17]} 8.Bd3 {[%clk 01:40:05] [%emt 00:00:17]} 8...h6 
{[%clk 01:42:23] [%emt 00:00:21]} 9.Bxf6 {[%clk 01:33:06] [%emt 00:07:28]} 
9...Qxf6 {[%clk 01:42:31] [%emt 00:00:22]} 10.O-O {[%clk 01:32:09] [%emt
00:01:27]} 10...Be6 {[%clk 01:41:42] [%emt 00:01:20]} 11.Rc1 {[%clk 00:59:17]
[%emt 00:33:22]} 11...c4 {[%clk 01:31:42] [%emt 00:10:30]} 12.Bb1 {[%clk
00:59:14] [%emt 00:00:32]} 12...Nc6 {[%clk 01:32:06] [%emt 00:00:06]} 13.e4 
{[%clk 00:50:54] [%emt 00:08:50]} 13...dxe4 {[%clk 01:20:16] [%emt 00:12:21]} 
14.Bxe4 {[%clk 00:42:45] [%emt 00:08:37]} 14...Bf5 {[%clk 01:01:16] [%emt
00:19:30]} 15.Qc2 {[%clk 00:26:41] [%emt 00:16:34]} 15...Bxc3 {[%clk 00:54:04]
[%emt 00:07:43]} 16.bxc3 {[%clk 00:27:06] [%emt 00:00:05]} 16...Bxe4 {[%clk
00:54:10] [%emt 00:00:24]} 17.Qxe4 {[%clk 00:27:30] [%emt 00:00:06]} 17...b5 
{[%clk 00:49:03] [%emt 00:05:37]} 18.Rfe1 {[%clk 00:26:09] [%emt 00:01:51]} 
18...Rad8 {[%clk 00:46:01] [%emt 00:03:33]} 19.a4 {[%clk 00:21:49] [%emt
00:04:50]} 19...a6 {[%clk 00:37:38] [%emt 00:08:53]} 20.axb5 {[%clk 00:21:12]
[%emt 00:01:07]} 20...axb5 {[%clk 00:38:03] [%emt 00:00:05]} 21.Ra1 {[%clk
00:11:11] [%emt 00:10:30]} 21...Ra8 {[%clk 00:32:35] [%emt 00:05:58]} 22.Rxa8 
{[%clk 00:10:09] [%emt 00:01:32]} 22...Rxa8 {[%clk 00:33:03] [%emt 00:00:01]} 
23.d5 {[%clk 00:10:24] [%emt 00:00:16]} 23...Na5 {[%clk 00:32:08] [%emt
00:01:25]} 24.d6 {[%clk 00:03:22] [%emt 00:07:31]} 24...Rd8 {[%clk 00:31:08]
[%emt 00:01:31]} 25.Qd5 {[%clk 00:03:16] [%emt 00:00:35]} 25...g6 {[%clk
00:13:13] [%emt 00:18:26]} 26.Qxb5 {[%clk 00:02:47] [%emt 00:00:59]} 26...Qxc3 
{[%clk 00:13:42] [%emt 00:00:02]} 27.d7 {[%clk 00:02:54] [%emt 00:00:22]} 
27...Kg7 {[%clk 00:13:30] [%emt 00:00:42]} 28.h4 {[%clk 00:02:23] [%emt
00:01:01]} 28...Nb3 {[%clk 00:11:28] [%emt 00:02:33]} 29.Re8 {[%clk 00:02:20]
[%emt 00:00:32]} 29...Qc1+ {[%clk 00:10:20] [%emt 00:01:37]} 30.Ne1 {[%clk
00:02:19] [%emt 00:00:31]} 1-0

[Event "FIDE Grand Swiss 2023"]
[Site "Villa Marina, Douglas, Isle of Man"]
[Date "2023.10.30"]
[Round "6.22"]
[White "Rodrigue-Lemieux, Shawn"]
[Black "Cheparinov, Ivan"]
[Result "1/2-1/2"]
[WhiteElo "2488"]
[BlackElo "2658"]
[EventDate "2023.10.25"]
[ECO "B30"]
[PlyCount "73"]
[BlackFideId "2905540"]
[TimeControl "40/100 + 20/50 + 15 + 30s/move"]
[WhiteFideId "2620049"]

1.e4 {[%clk 01:40:56] [%emt 00:00:02]} 1...c5 {[%clk 01:40:55] [%emt 00:00:06]} 
2.Nf3 {[%clk 01:41:18] [%emt 00:00:08]} 2...Nc6 {[%clk 01:41:21] [%emt
00:00:05]} 3.Bb5 {[%clk 01:41:24] [%emt 00:00:23]} 3...e6 {[%clk 01:41:09] [%emt
00:00:43]} 4.O-O {[%clk 01:40:26] [%emt 00:01:28]} 4...Nge7 {[%clk 01:41:32]
[%emt 00:00:07]} 5.Re1 {[%clk 01:40:05] [%emt 00:00:50]} 5...Nd4 {[%clk
01:40:42] [%emt 00:01:20]} 6.Nxd4 {[%clk 01:37:05] [%emt 00:03:30]} 6...cxd4 
{[%clk 01:41:05] [%emt 00:00:07]} 7.c3 {[%clk 01:37:27] [%emt 00:00:08]} 7...a6 
{[%clk 01:41:30] [%emt 00:00:06]} 8.Bf1 {[%clk 01:25:19] [%emt 00:12:38]} 
8...Nc6 {[%clk 01:41:35] [%emt 00:00:24]} 9.d3 {[%clk 01:24:54] [%emt 00:00:54]} 
9...Bc5 {[%clk 01:40:48] [%emt 00:01:18]} 10.Nd2 {[%clk 01:23:56] [%emt
00:01:28]} 10...d6 {[%clk 01:39:14] [%emt 00:02:05]} 11.Nb3 {[%clk 01:21:45]
[%emt 00:02:41]} 11...e5 {[%clk 01:39:05] [%emt 00:00:39]} 12.Nxc5 {[%clk
01:17:42] [%emt 00:04:33]} 12...dxc5 {[%clk 01:39:29] [%emt 00:00:07]} 13.f4 
{[%clk 01:13:04] [%emt 00:05:06]} 13...exf4 {[%clk 01:32:45] [%emt 00:07:14]} 
14.Bxf4 {[%clk 01:12:22] [%emt 00:01:12]} 14...O-O {[%clk 01:30:55] [%emt
00:02:21]} 15.Qh5 {[%clk 01:06:52] [%emt 00:05:59]} 15...f5 {[%clk 01:26:04]
[%emt 00:05:22]} 16.g3 {[%clk 00:48:59] [%emt 00:18:23]} 16...Be6 {[%clk
01:19:02] [%emt 00:07:31]} 17.c4 {[%clk 00:45:11] [%emt 00:04:17]} 17...fxe4 
{[%clk 00:54:44] [%emt 00:24:50]} 18.Rxe4 {[%clk 00:41:50] [%emt 00:03:51]} 
18...Bf5 {[%clk 00:55:12] [%emt 00:00:02]} 19.Ree1 {[%clk 00:41:41] [%emt
00:00:38]} 19...Qf6 {[%clk 00:51:40] [%emt 00:04:02]} 20.a3 {[%clk 00:39:08]
[%emt 00:03:04]} 20...h6 {[%clk 00:49:26] [%emt 00:02:44]} 21.h4 {[%clk
00:38:44] [%emt 00:00:53]} 21...Rac8 {[%clk 00:30:10] [%emt 00:19:47]} 22.Rad1 
{[%clk 00:30:18] [%emt 00:08:55]} 22...Ne7 {[%clk 00:29:43] [%emt 00:00:58]} 
23.Rd2 {[%clk 00:25:51] [%emt 00:04:56]} 23...Qg6 {[%clk 00:19:22] [%emt
00:10:52]} 24.Qf3 {[%clk 00:21:55] [%emt 00:04:25]} 24...Bg4 {[%clk 00:16:41]
[%emt 00:03:12]} 25.Qg2 {[%clk 00:15:26] [%emt 00:06:59]} 25...Nf5 {[%clk
00:13:49] [%emt 00:03:22]} 26.Rf2 {[%clk 00:15:54] [%emt 00:00:01]} 26...Kh7 
{[%clk 00:12:03] [%emt 00:02:17]} 27.Kh2 {[%clk 00:14:31] [%emt 00:01:53]} 
27...Rc6 {[%clk 00:10:14] [%emt 00:02:18]} 28.Re5 {[%clk 00:13:52] [%emt
00:01:10]} 28...Rcf6 {[%clk 00:08:35] [%emt 00:02:10]} 29.Qe4 {[%clk 00:13:37]
[%emt 00:00:44]} 29...Ne3 {[%clk 00:07:33] [%emt 00:01:32]} 30.Qxg6+ {[%clk
00:13:34] [%emt 00:00:33]} 30...Kxg6 {[%clk 00:08:02] [%emt 00:00:01]} 31.Rxc5 
{[%clk 00:13:04] [%emt 00:00:59]} 31...Nxf1+ {[%clk 00:05:01] [%emt 00:03:32]} 
32.Rxf1 {[%clk 00:13:32] [%emt 00:00:01]} 32...Re8 {[%clk 00:03:51] [%emt
00:01:40]} 33.Rf2 {[%clk 00:13:13] [%emt 00:00:49]} 33...Rfe6 {[%clk 00:03:36]
[%emt 00:00:46]} 34.Rd5 {[%clk 00:10:58] [%emt 00:02:44]} 34...Re2 {[%clk
00:04:01] [%emt 00:00:06]} 35.Rxe2 {[%clk 00:11:02] [%emt 00:00:25]} 35...Rxe2+ 
{[%clk 00:04:27] [%emt 00:00:04]} 36.Kg1 {[%clk 00:11:26] [%emt 00:00:07]} 
36...Rxb2 {[%clk 00:04:21] [%emt 00:00:36]} 37.Rxd4 {[%clk 00:11:42] [%emt
00:00:14]} 1/2-1/2

[Event "FIDE Grand Swiss 2023"]
[Site "Villa Marina, Douglas, Isle of Man"]
[Date "2023.10.30"]
[Round "6.23"]
[White "Korobov, Anton"]
[Black "Kuybokarov, Temur"]
[Result "1-0"]
[WhiteElo "2658"]
[BlackElo "2584"]
[EventDate "2023.10.25"]
[ECO "E60"]
[PlyCount "95"]
[BlackFideId "14203049"]
[TimeControl "40/100 + 20/50 + 15 + 30s/move"]
[WhiteFideId "14105730"]

1.d4 {[%clk 01:40:56] [%emt 00:00:03]} 1...Nf6 {[%clk 01:40:51] [%emt 00:00:11]} 
2.c4 {[%clk 01:41:20] [%emt 00:00:06]} 2...g6 {[%clk 01:41:10] [%emt 00:00:11]} 
3.g3 {[%clk 01:41:28] [%emt 00:00:22]} 3...Bg7 {[%clk 01:40:59] [%emt 00:00:40]} 
4.Bg2 {[%clk 01:41:29] [%emt 00:00:29]} 4...O-O {[%clk 01:41:09] [%emt
00:00:20]} 5.Nf3 {[%clk 01:39:26] [%emt 00:02:34]} 5...c5 {[%clk 01:39:00] [%emt
00:02:39]} 6.Nc3 {[%clk 01:39:09] [%emt 00:00:46]} 6...d5 {[%clk 01:32:06] [%emt
00:07:25]} 7.dxc5 {[%clk 01:35:12] [%emt 00:04:27]} 7...Qa5 {[%clk 01:30:47]
[%emt 00:01:49]} 8.cxd5 {[%clk 01:20:31] [%emt 00:15:10]} 8...Nxd5 {[%clk
01:28:08] [%emt 00:03:10]} 9.Qxd5 {[%clk 01:19:19] [%emt 00:01:42]} 9...Bxc3+ 
{[%clk 01:27:46] [%emt 00:00:52]} 10.Bd2 {[%clk 01:15:12] [%emt 00:04:36]} 
10...Rd8 {[%clk 01:20:04] [%emt 00:08:12]} 11.Qxd8+ {[%clk 01:07:18]} 11...Qxd8 
{[%clk 01:20:28] [%emt 00:08:30]} 12.Bxc3 {[%clk 01:07:43] [%emt 00:00:06]} 
12...Qc7 {[%clk 01:08:48] [%emt 00:12:10]} 13.Rc1 {[%clk 01:01:07] [%emt
00:07:05]} 13...Be6 {[%clk 00:55:09] [%emt 00:14:09]} 14.h4 {[%clk 00:43:56]
[%emt 00:17:41]} 14...Bxa2 {[%clk 00:37:45] [%emt 00:17:55]} 15.h5 {[%clk
00:43:45] [%emt 00:00:40]} 15...f6 {[%clk 00:37:34] [%emt 00:00:42]} 16.hxg6 
{[%clk 00:40:12] [%emt 00:04:03]} 16...hxg6 {[%clk 00:37:33] [%emt 00:00:31]} 
17.Ra1 {[%clk 00:40:27] [%emt 00:00:14]} 17...Bd5 {[%clk 00:19:00] [%emt
00:19:04]} 18.Ra4 {[%clk 00:39:22] [%emt 00:01:34]} 18...Nd7 {[%clk 00:18:11]
[%emt 00:01:19]} 19.Rah4 {[%clk 00:35:50] [%emt 00:04:03]} 19...Nf8 {[%clk
00:18:16] [%emt 00:00:25]} 20.e4 {[%clk 00:32:45] [%emt 00:03:34]} 20...Ba2 
{[%clk 00:17:06] [%emt 00:01:41]} 21.e5 {[%clk 00:29:28] [%emt 00:03:47]} 
21...Qxc5 {[%clk 00:16:37] [%emt 00:00:58]} 22.exf6 {[%clk 00:27:16] [%emt
00:02:42]} 22...exf6 {[%clk 00:16:43] [%emt 00:00:25]} 23.O-O {[%clk 00:27:39]
[%emt 00:00:06]} 23...Nh7 {[%clk 00:13:09] [%emt 00:04:03]} 24.Rd1 {[%clk
00:22:03] [%emt 00:06:07]} 24...Be6 {[%clk 00:10:16] [%emt 00:03:23]} 25.Nd4 
{[%clk 00:18:36] [%emt 00:03:58]} 25...Rd8 {[%clk 00:10:04] [%emt 00:00:41]} 
26.Bxb7 {[%clk 00:17:04] [%emt 00:02:02]} 26...Ng5 {[%clk 00:09:06] [%emt
00:01:29]} 27.Bg2 {[%clk 00:15:55] [%emt 00:01:38]} 27...Bf7 {[%clk 00:05:11]
[%emt 00:04:25]} 28.Ra1 {[%clk 00:14:26] [%emt 00:01:59]} 28...Rd7 {[%clk
00:04:41] [%emt 00:01:01]} 29.Ra6 {[%clk 00:13:12] [%emt 00:01:43]} 29...Rd6 
{[%clk 00:04:23] [%emt 00:00:48]} 30.Ra5 {[%clk 00:12:34] [%emt 00:01:08]} 
30...Qc7 {[%clk 00:04:43] [%emt 00:00:10]} 31.Kh2 {[%clk 00:11:54] [%emt
00:01:10]} 31...a6 {[%clk 00:03:04] [%emt 00:02:10]} 32.Nc2 {[%clk 00:08:59]
[%emt 00:03:24]} 32...Rd3 {[%clk 00:01:49] [%emt 00:01:46]} 33.Rxa6 {[%clk
00:06:56] [%emt 00:02:33]} 33...Rxc3 {[%clk 00:01:32] [%emt 00:00:47]} 34.bxc3 
{[%clk 00:07:16] [%emt 00:00:09]} 34...Qxc3 {[%clk 00:01:58] [%emt 00:00:04]} 
35.Nd4 {[%clk 00:06:22] [%emt 00:01:24]} 35...Qc5 {[%clk 00:00:35] [%emt
00:01:54]} 36.Rxf6 {[%clk 00:06:19] [%emt 00:00:32]} 36...Kg7 {[%clk 00:00:50]
[%emt 00:00:16]} 37.Rc6 {[%clk 00:05:36] [%emt 00:01:13]} 37...Qe5 {[%clk
00:01:01] [%emt 00:00:19]} 38.Ra6 {[%clk 00:04:54] [%emt 00:01:12]} 38...Qc5 
{[%clk 00:01:00] [%emt 00:00:31]} 39.Rc6 {[%clk 00:04:30] [%emt 00:00:53]} 
39...Qe5 {[%clk 00:01:11] [%emt 00:00:20]} 40.Rb6 {[%clk 00:04:30] [%emt
00:00:29]} 40...Nh7 {[%clk 00:00:42] [%emt 00:00:59]} 41.Rb7 {[%clk 00:00:50]
[%emt 00:04:10]} 41...Nf6 {[%clk 00:00:31] [%emt 00:00:41]} 42.Nc6 {[%clk
00:48:04] [%emt 00:03:17]} 42...Qe8 {[%clk 00:45:12] [%emt 00:05:49]} 43.Rd4 
{[%clk 00:39:25] [%emt 00:09:09]} 43...Kh6 {[%clk 00:32:25] [%emt 00:13:16]} 
44.Re7 {[%clk 00:39:13] [%emt 00:00:42]} 44...Qf8 {[%clk 00:32:17] [%emt
00:00:39]} 45.Rf4 {[%clk 00:39:18] [%emt 00:00:24]} 45...Kg7 {[%clk 00:30:14]
[%emt 00:02:33]} 46.Kg1 {[%clk 00:39:22] [%emt 00:00:25]} 46...g5 {[%clk
00:23:59] [%emt 00:06:46]} 47.Rf5 {[%clk 00:39:37] [%emt 00:00:14]} 47...g4 
{[%clk 00:23:25] [%emt 00:01:05]} 48.Rf4 {[%clk 00:39:29] [%emt 00:00:36]} 1-0